Workbook

Sheet Instructions (hidden)
B1: Macros must be enabled for APR to calculate correctly

Sheet LoanEstimate
A1: Loan Estimate
A2: Date Issued
E3: Loan Term | F3: 30 Years
A4: Applicants | E4: Purpose | F4: Purchase
E5: Product | F5: 7 Years Negative Amortization, Fixed Rate
E6: Loan Type | F6: Conventional | K6: 2.293409761e+77
E7: Loan #
A8: Property Address | E8: Rate Lock
A10: Sales Price
A12: Loan Terms | D12: Can this amount increase after closing?
A13: Loan Amount | C13: 40000 | D13: NO
A14: Interest Rate | C14: 0.035 | D14: NO
A15: Monthly Principal & Interest | C15: 0 | D15: YES
A16: See Projected Payments below for your Estimated Total Monthly Payment
D17: Does this loan have these features?
A18: Prepayment Penalty | D18: NO
A19: Balloon Payment | D19: NO
A20: Projected Payments
A21: Payment Calculation | C21: Years 1-7 | E21: Years 8-30
A22: Principal & Interest | C22: 0 | E22: =PI23YearAm -> 262.9492684
A23: Mortgage Insurance | C23: 0 | E23: 0
A24: Escrow (Covered in 1st Mortgage) | C24: 0 | E24: 0
A25: Estimated Total Monthly Payment | C25: =C22 -> 0 | E25: =SUM(E22:G24) -> 262.9492684
A27: Costs at Closing | C27: See below for details | E27: Details of Transaction
A28: Estimated Closing Costs | C28: =C30+C31+C32+C33+C34 -> 290 | E28: Amount credited to 1st Loan Estimate | G28: =SUM(G31-G29+G30) -> 39710
A29: Costs | E29: Est. Closing Costs | G29: =Estimated_Closing_Costs -> 290
A30: Program Application Fee | C30: 40 | E30: Credits | G30: =Credits -> 0
A31: Settlement Fee | C31: 150 | E31: DPA Loan Amount | G31: =Loan_Amount -> 40000
A32: Recording Fee | C32: 100
A35: Loan Credits
A36: Paid on behalf of Borrower at Closing | C36: =SUM(C37+C38) -> 0
A37: Lender Credit/Cure
C40: Loan Estimate continued on page 2
A42: Lender | E42: Loan Officer
A43: NMLS/License ID | E43: NMLS/License ID
A44: Email | E44: Phone
A46: Comparisons
A47: Annual Percentage Rate (APR) | C47: =APR_annualized -> 0.03377923088 | D47: Your costs over the loan term expressed as a rate. Not your interest rate.
A48: Total of Payments | C48: =Loan_Amount+TotalInterest -> 72573.99807
A49: Total Interest Percentage(TIP) | C49: =TotalInterest/Loan_Amount -> 0.8143499519 | D49: The total amount of interest that you will pay over the loan term as a percentage of your loan amount.
A51: Other Considerations
A52: Assumption | C52: If you sell or transfer this property to another person, we will not allow assumptions of this loan on the original terms.
A54: Homeowner's Insurance | C54: This loan requires homeowner's insurance on the property,
C55: which you may obtain from a company of your choice that we
C56: find acceptable.
A57: Late Payments | C57: There is no Late Payment Fee associated with this mortgage.
A59: Servicing | C59: We intend to transfer the servicing of your loan.
A61: Deferred Payment | C61: Payments on the loan are deferred for the first 7 years, afterwards
C62: the loan will amortize to payoff in the remaining 23 years.
A63: Acknowledgement
A64: I/we understand that my/our home purchase is assisted by a downpayment loan from the Washington State Housing Finance Commission (Commission) in partnership with the University of Washington. I/we understand that the Commission will require the loan to be repaid in full if:
A65: * the home is no longer my/our principal residence,
A66: * the home is sold or transferred,
A67: * if the first mortgage is paid off or refinanced
A68: * or if I am no I am no longer employed by the University of Washington
A70: I/we further understand that, in the event the Commission requires repayment prior to the maturity date, I/we will be required to pay the accrued interest as well as the outstanding principal balance on the loan.
A72: Confirm Receipt
A73: By signing, you are only confirming you have received this form. You do not have to accept this loan because you have signed or received this form.
A78: Applicant Signature | C78: Date | D78: Co-Applicant Signature | G78: Date

Sheet Calculations (hidden)
A1: Term of Deferrement | C1: 84 | D1: Months
A2: Original L/A | B2: Interest After Deferred Term | C2: Start Am Balance | D2: Remaining Term | E2: Ppay | F2: Ipay
A3: =Loan_Amount -> 40000 | B3: =SUM(DefMonths/12*Interest_Rate*Loan_Amount) -> 9800 | C3: =SUM(Loan_Amount+Interest_After_Deferred_Term) -> 49800 | D3: =SUM(LoanTerm-DefMonths) -> 276 | E3: =PPMT(Interest_Rate/12,1,D3,C3) -> -117.6992684 | F3: =IPMT(Interest_Rate/12,1,LoanTerm-D3,C3) -> -145.25 | G3: =SUM(E3:F3)*-1 -> 262.9492684
A5: APR Related Fees | B5: =SUM(LoanEstimate!C30:C31) -> 190
A7: LoanTerm | B7: 360

Sheet DefAmSched (hidden)
A1: Term of Deferrement | C1: 84 | D1: Months
A5: Month | B5: Payment | C5: Interest | D5: Prinicpal | E5: Balance | F5: Total Interest Life of Loan | G5: Present Value of Payents
A6: 0 | B6: 0 | D6: 0 | E6: =Loan_Amount -> 40000 | F6: =SUM(tblDefAmort[Interest]) -> 32573.99807 | G6: =-(Calculations!A3-APRFees) -> -39810 | I6: APR Guess | J6: 0.002814935907 | L6: Amount FIN | M6: =40000-299 -> 39701
A7: 1 | B7: 0 | C7: =SUM($E$6*Interest_Rate/12) -> 116.6666667 | D7: 0 | E7: =SUM(E6+C7) -> 40116.66667
A8: 2 | B8: 0 | C8: 116.6666667 | D8: 0 | E8: =SUM(E7+C8) -> 40233.33333 | I8: APR annualized | J8: =J6*12 -> 0.03377923088
A9: 3 | B9: 0 | C9: 116.6666667 | D9: 0 | E9: 40350
A10: 4 | B10: 0 | C10: 116.6666667 | D10: 0 | E10: 40466.66667
A11: 5 | B11: 0 | C11: 116.6666667 | D11: 0 | E11: 40583.33333
A12: 6 | B12: 0 | C12: 116.6666667 | D12: 0 | E12: 40700 | I12: PV of annuity method | J12: =((B91/(1+J6)^85)*(1-1/(1+J6)^276))/(1-1/(1+J6)) -> 39809.99994
A13: 7 | B13: 0 | C13: 116.6666667 | D13: 0 | E13: 40816.66667
A14: 8 | B14: 0 | C14: 116.6666667 | D14: 0 | E14: 40933.33333
A15: 9 | B15: 0 | C15: 116.6666667 | D15: 0 | E15: 41050
A16: 10 | B16: 0 | C16: 116.6666667 | D16: 0 | E16: 41166.66667
A17: 11 | B17: 0 | C17: 116.6666667 | D17: 0 | E17: 41283.33333
A18: 12 | B18: 0 | C18: 116.6666667 | D18: 0 | E18: 41400
A19: 13 | B19: 0 | C19: 116.6666667 | D19: 0 | E19: 41516.66667
A20: 14 | B20: 0 | C20: 116.6666667 | D20: 0 | E20: 41633.33333
A21: 15 | B21: 0 | C21: 116.6666667 | D21: 0 | E21: 41750
A22: 16 | B22: 0 | C22: 116.6666667 | D22: 0 | E22: 41866.66667
A23: 17 | B23: 0 | C23: 116.6666667 | D23: 0 | E23: 41983.33333
A24: 18 | B24: 0 | C24: 116.6666667 | D24: 0 | E24: 42100
A25: 19 | B25: 0 | C25: 116.6666667 | D25: 0 | E25: 42216.66667
A26: 20 | B26: 0 | C26: 116.6666667 | D26: 0 | E26: 42333.33333
A27: 21 | B27: 0 | C27: 116.6666667 | D27: 0 | E27: 42450
A28: 22 | B28: 0 | C28: 116.6666667 | D28: 0 | E28: 42566.66667
A29: 23 | B29: 0 | C29: 116.6666667 | D29: 0 | E29: 42683.33333
A30: 24 | B30: 0 | C30: 116.6666667 | D30: 0 | E30: 42800
A31: 25 | B31: 0 | C31: 116.6666667 | D31: 0 | E31: 42916.66667
A32: 26 | B32: 0 | C32: 116.6666667 | D32: 0 | E32: 43033.33333
A33: 27 | B33: 0 | C33: 116.6666667 | D33: 0 | E33: 43150
A34: 28 | B34: 0 | C34: 116.6666667 | D34: 0 | E34: 43266.66667
A35: 29 | B35: 0 | C35: 116.6666667 | D35: 0 | E35: 43383.33333
A36: 30 | B36: 0 | C36: 116.6666667 | D36: 0 | E36: 43500
A37: 31 | B37: 0 | C37: 116.6666667 | D37: 0 | E37: 43616.66667
A38: 32 | B38: 0 | C38: 116.6666667 | D38: 0 | E38: 43733.33333
A39: 33 | B39: 0 | C39: =SUM($E$6*Interest_Rate/12) -> 116.6666667 | D39: 0 | E39: 43850
A40: 34 | B40: 0 | C40: 116.6666667 | D40: 0 | E40: 43966.66667
A41: 35 | B41: 0 | C41: 116.6666667 | D41: 0 | E41: 44083.33333
A42: 36 | B42: 0 | C42: 116.6666667 | D42: 0 | E42: 44200
A43: 37 | B43: 0 | C43: 116.6666667 | D43: 0 | E43: 44316.66667
A44: 38 | B44: 0 | C44: 116.6666667 | D44: 0 | E44: 44433.33333
A45: 39 | B45: 0 | C45: 116.6666667 | D45: 0 | E45: 44550
A46: 40 | B46: 0 | C46: 116.6666667 | D46: 0 | E46: 44666.66667
A47: 41 | B47: 0 | C47: 116.6666667 | D47: 0 | E47: 44783.33333
A48: 42 | B48: 0 | C48: 116.6666667 | D48: 0 | E48: 44900
A49: 43 | B49: 0 | C49: 116.6666667 | D49: 0 | E49: 45016.66667
A50: 44 | B50: 0 | C50: 116.6666667 | D50: 0 | E50: 45133.33333
A51: 45 | B51: 0 | C51: 116.6666667 | D51: 0 | E51: 45250
A52: 46 | B52: 0 | C52: 116.6666667 | D52: 0 | E52: 45366.66667
A53: 47 | B53: 0 | C53: 116.6666667 | D53: 0 | E53: 45483.33333
A54: 48 | B54: 0 | C54: 116.6666667 | D54: 0 | E54: 45600
A55: 49 | B55: 0 | C55: 116.6666667 | D55: 0 | E55: 45716.66667
A56: 50 | B56: 0 | C56: 116.6666667 | D56: 0 | E56: 45833.33333
A57: 51 | B57: 0 | C57: 116.6666667 | D57: 0 | E57: 45950
A58: 52 | B58: 0 | C58: 116.6666667 | D58: 0 | E58: 46066.66667
A59: 53 | B59: 0 | C59: 116.6666667 | D59: 0 | E59: 46183.33333
A60: 54 | B60: 0 | C60: 116.6666667 | D60: 0 | E60: 46300
A61: 55 | B61: 0 | C61: 116.6666667 | D61: 0 | E61: 46416.66667
A62: 56 | B62: 0 | C62: 116.6666667 | D62: 0 | E62: 46533.33333
A63: 57 | B63: 0 | C63: 116.6666667 | D63: 0 | E63: 46650
A64: 58 | B64: 0 | C64: 116.6666667 | D64: 0 | E64: 46766.66667
A65: 59 | B65: 0 | C65: 116.6666667 | D65: 0 | E65: 46883.33333
A66: 60 | B66: 0 | C66: 116.6666667 | D66: 0 | E66: 47000
A67: 61 | B67: 0 | C67: 116.6666667 | D67: 0 | E67: 47116.66667
A68: 62 | B68: 0 | C68: 116.6666667 | D68: 0 | E68: 47233.33333
A69: 63 | B69: 0 | C69: 116.6666667 | D69: 0 | E69: 47350
A70: 64 | B70: 0 | C70: 116.6666667 | D70: 0 | E70: 47466.66667
A71: 65 | B71: 0 | C71: =SUM($E$6*Interest_Rate/12) -> 116.6666667 | D71: 0 | E71: 47583.33333
A72: 66 | B72: 0 | C72: 116.6666667 | D72: 0 | E72: =SUM(E71+C72) -> 47700
A73: 67 | B73: 0 | C73: 116.6666667 | D73: 0 | E73: 47816.66667
A74: 68 | B74: 0 | C74: 116.6666667 | D74: 0 | E74: 47933.33333
A75: 69 | B75: 0 | C75: 116.6666667 | D75: 0 | E75: 48050
A76: 70 | B76: 0 | C76: 116.6666667 | D76: 0 | E76: 48166.66667
A77: 71 | B77: 0 | C77: 116.6666667 | D77: 0 | E77: 48283.33333
A78: 72 | B78: 0 | C78: 116.6666667 | D78: 0 | E78: 48400
A79: 73 | B79: 0 | C79: 116.6666667 | D79: 0 | E79: 48516.66667
A80: 74 | B80: 0 | C80: 116.6666667 | D80: 0 | E80: 48633.33333
A81: 75 | B81: 0 | C81: 116.6666667 | D81: 0 | E81: 48750
A82: 76 | B82: 0 | C82: 116.6666667 | D82: 0 | E82: 48866.66667
A83: 77 | B83: 0 | C83: 116.6666667 | D83: 0 | E83: 48983.33333
A84: 78 | B84: 0 | C84: 116.6666667 | D84: 0 | E84: 49100
A85: 79 | B85: 0 | C85: 116.6666667 | D85: 0 | E85: 49216.66667
A86: 80 | B86: 0 | C86: 116.6666667 | D86: 0 | E86: 49333.33333
A87: 81 | B87: 0 | C87: 116.6666667 | D87: 0 | E87: 49450
A88: 82 | B88: 0 | C88: 116.6666667 | D88: 0 | E88: 49566.66667
A89: 83 | B89: 0 | C89: 116.6666667 | D89: 0 | E89: 49683.33333
A90: 84 | B90: 0 | C90: 116.6666667 | D90: 0 | E90: 49800
A91: 85 | B91: =-PMT(Interest_Rate/12,360-84,BalStartAm) -> 262.9492684 | C91: =SUM(E90*Interest_Rate/12) -> 145.25 | D91: =SUM(tblDefAmort[[#This Row],[Payment]]-tblDefAmort[[#This Row],[Interest]]) -> 117.6992684 | E91: =SUM(E90-D91) -> 49682.30073 | G91: =tblDefAmort[[#This Row],[Payment]]/((1+$J$6)^tblDefAmort[[#This Row],[Month]]) -> 207.0639534
A92: 86 | B92: 262.9492684 | C92: 144.9067105 | D92: =SUM(B92-C92) -> 118.0425579 | E92: =SUM(E91-D92) -> 49564.25817 | G92: =tblDefAmort[[#This Row],[Payment]]/((1+$J$6)^tblDefAmort[[#This Row],[Month]]) -> 206.4827178
A93: 87 | B93: 262.9492684 | C93: 144.5624197 | D93: 118.3868487 | E93: 49445.87132 | G93: =tblDefAmort[[#This Row],[Payment]]/((1+$J$6)^tblDefAmort[[#This Row],[Month]]) -> 205.9031137
A94: 88 | B94: 262.9492684 | C94: 144.2171247 | D94: 118.7321437 | E94: 49327.13918 | G94: =tblDefAmort[[#This Row],[Payment]]/((1+$J$6)^tblDefAmort[[#This Row],[Month]]) -> 205.3251366
A95: 89 | B95: 262.9492684 | C95: 143.8708226 | D95: 119.0784458 | E95: 49208.06074 | G95: =tblDefAmort[[#This Row],[Payment]]/((1+$J$6)^tblDefAmort[[#This Row],[Month]]) -> 204.7487819
A96: 90 | B96: 262.9492684 | C96: 143.5235105 | D96: 119.4257579 | E96: 49088.63498 | G96: =tblDefAmort[[#This Row],[Payment]]/((1+$J$6)^tblDefAmort[[#This Row],[Month]]) -> 204.1740451
A97: 91 | B97: 262.9492684 | C97: 143.1751854 | D97: 119.774083 | E97: 48968.86089 | G97: =tblDefAmort[[#This Row],[Payment]]/((1+$J$6)^tblDefAmort[[#This Row],[Month]]) -> 203.6009215
A98: 92 | B98: 262.9492684 | C98: 142.8258443 | D98: 120.1234241 | E98: 48848.73747 | G98: =tblDefAmort[[#This Row],[Payment]]/((1+$J$6)^tblDefAmort[[#This Row],[Month]]) -> 203.0294068
A99: 93 | B99: 262.9492684 | C99: 142.4754843 | D99: 120.4737841 | E99: 48728.26369 | G99: =tblDefAmort[[#This Row],[Payment]]/((1+$J$6)^tblDefAmort[[#This Row],[Month]]) -> 202.4594963
A100: 94 | B100: 262.9492684 | C100: 142.1241024 | D100: 120.825166 | E100: 48607.43852 | G100: =tblDefAmort[[#This Row],[Payment]]/((1+$J$6)^tblDefAmort[[#This Row],[Month]]) -> 201.8911855
A101: 95 | B101: 262.9492684 | C101: 141.7716957 | D101: 121.1775727 | E101: 48486.26095 | G101: =tblDefAmort[[#This Row],[Payment]]/((1+$J$6)^tblDefAmort[[#This Row],[Month]]) -> 201.32447
A102: 96 | B102: 262.9492684 | C102: 141.4182611 | D102: 121.5310073 | E102: 48364.72994 | G102: =tblDefAmort[[#This Row],[Payment]]/((1+$J$6)^tblDefAmort[[#This Row],[Month]]) -> 200.7593453
A103: 97 | B103: 262.9492684 | C103: 141.0637957 | D103: 121.8854727 | E103: 48242.84447 | G103: =tblDefAmort[[#This Row],[Payment]]/((1+$J$6)^tblDefAmort[[#This Row],[Month]]) -> 200.195807
A104: 98 | B104: 262.9492684 | C104: 140.7082964 | D104: 122.240972 | E104: 48120.6035 | G104: =tblDefAmort[[#This Row],[Payment]]/((1+$J$6)^tblDefAmort[[#This Row],[Month]]) -> 199.6338505
A105: 99 | B105: 262.9492684 | C105: 140.3517602 | D105: 122.5975082 | E105: 47998.00599 | G105: =tblDefAmort[[#This Row],[Payment]]/((1+$J$6)^tblDefAmort[[#This Row],[Month]]) -> 199.0734714
A106: 100 | B106: 262.9492684 | C106: 139.9941841 | D106: 122.9550843 | E106: 47875.0509 | G106: =tblDefAmort[[#This Row],[Payment]]/((1+$J$6)^tblDefAmort[[#This Row],[Month]]) -> 198.5146654
A107: 101 | B107: 262.9492684 | C107: 139.6355651 | D107: 123.3137033 | E107: 47751.7372 | G107: =tblDefAmort[[#This Row],[Payment]]/((1+$J$6)^tblDefAmort[[#This Row],[Month]]) -> 197.9574279
A108: 102 | B108: 262.9492684 | C108: 139.2759002 | D108: 123.6733682 | E108: 47628.06383 | G108: =tblDefAmort[[#This Row],[Payment]]/((1+$J$6)^tblDefAmort[[#This Row],[Month]]) -> 197.4017546
A109: 103 | B109: 262.9492684 | C109: 138.9151862 | D109: 124.0340822 | E109: 47504.02975 | G109: =tblDefAmort[[#This Row],[Payment]]/((1+$J$6)^tblDefAmort[[#This Row],[Month]]) -> 196.8476411
A110: 104 | B110: 262.9492684 | C110: 138.5534201 | D110: 124.3958483 | E110: 47379.6339 | G110: =tblDefAmort[[#This Row],[Payment]]/((1+$J$6)^tblDefAmort[[#This Row],[Month]]) -> 196.295083
A111: 105 | B111: 262.9492684 | C111: 138.1905989 | D111: 124.7586695 | E111: 47254.87523 | G111: =tblDefAmort[[#This Row],[Payment]]/((1+$J$6)^tblDefAmort[[#This Row],[Month]]) -> 195.744076
A112: 106 | B112: 262.9492684 | C112: 137.8267194 | D112: 125.122549 | E112: 47129.75268 | G112: =tblDefAmort[[#This Row],[Payment]]/((1+$J$6)^tblDefAmort[[#This Row],[Month]]) -> 195.1946157
A113: 107 | B113: 262.9492684 | C113: 137.4617787 | D113: 125.4874897 | E113: 47004.26519 | G113: =tblDefAmort[[#This Row],[Payment]]/((1+$J$6)^tblDefAmort[[#This Row],[Month]]) -> 194.6466977
A114: 108 | B114: 262.9492684 | C114: 137.0957735 | D114: 125.8534949 | E114: 46878.4117 | G114: =tblDefAmort[[#This Row],[Payment]]/((1+$J$6)^tblDefAmort[[#This Row],[Month]]) -> 194.1003177
A115: 109 | B115: 262.9492684 | C115: 136.7287008 | D115: 126.2205676 | E115: 46752.19113 | G115: =tblDefAmort[[#This Row],[Payment]]/((1+$J$6)^tblDefAmort[[#This Row],[Month]]) -> 193.5554715
A116: 110 | B116: 262.9492684 | C116: 136.3605575 | D116: 126.5887109 | E116: 46625.60242 | G116: =tblDefAmort[[#This Row],[Payment]]/((1+$J$6)^tblDefAmort[[#This Row],[Month]]) -> 193.0121546
A117: 111 | B117: 262.9492684 | C117: 135.9913404 | D117: 126.957928 | E117: 46498.64449 | G117: =tblDefAmort[[#This Row],[Payment]]/((1+$J$6)^tblDefAmort[[#This Row],[Month]]) -> 192.4703629
A118: 112 | B118: 262.9492684 | C118: 135.6210464 | D118: 127.328222 | E118: 46371.31627 | G118: =tblDefAmort[[#This Row],[Payment]]/((1+$J$6)^tblDefAmort[[#This Row],[Month]]) -> 191.930092
A119: 113 | B119: 262.9492684 | C119: 135.2496725 | D119: 127.6995959 | E119: 46243.61667 | G119: =tblDefAmort[[#This Row],[Payment]]/((1+$J$6)^tblDefAmort[[#This Row],[Month]]) -> 191.3913377
A120: 114 | B120: 262.9492684 | C120: 134.8772153 | D120: 128.0720531 | E120: 46115.54462 | G120: =tblDefAmort[[#This Row],[Payment]]/((1+$J$6)^tblDefAmort[[#This Row],[Month]]) -> 190.8540956
A121: 115 | B121: 262.9492684 | C121: 134.5036718 | D121: 128.4455966 | E121: 45987.09902 | G121: =tblDefAmort[[#This Row],[Payment]]/((1+$J$6)^tblDefAmort[[#This Row],[Month]]) -> 190.3183616
A122: 116 | B122: 262.9492684 | C122: 134.1290388 | D122: 128.8202296 | E122: 45858.27879 | G122: =tblDefAmort[[#This Row],[Payment]]/((1+$J$6)^tblDefAmort[[#This Row],[Month]]) -> 189.7841314
A123: 117 | B123: 262.9492684 | C123: 133.7533132 | D123: 129.1959552 | E123: 45729.08284 | G123: =tblDefAmort[[#This Row],[Payment]]/((1+$J$6)^tblDefAmort[[#This Row],[Month]]) -> 189.2514009
A124: 118 | B124: 262.9492684 | C124: 133.3764916 | D124: 129.5727768 | E124: 45599.51006 | G124: =tblDefAmort[[#This Row],[Payment]]/((1+$J$6)^tblDefAmort[[#This Row],[Month]]) -> 188.7201657
A125: 119 | B125: 262.9492684 | C125: 132.998571 | D125: 129.9506974 | E125: 45469.55937 | G125: =tblDefAmort[[#This Row],[Payment]]/((1+$J$6)^tblDefAmort[[#This Row],[Month]]) -> 188.1904217
A126: 120 | B126: 262.9492684 | C126: 132.6195481 | D126: 130.3297202 | E126: 45339.22964 | G126: =tblDefAmort[[#This Row],[Payment]]/((1+$J$6)^tblDefAmort[[#This Row],[Month]]) -> 187.6621648
A127: 121 | B127: 262.9492684 | C127: 132.2394198 | D127: 130.7098486 | E127: 45208.5198 | G127: =tblDefAmort[[#This Row],[Payment]]/((1+$J$6)^tblDefAmort[[#This Row],[Month]]) -> 187.1353906
A128: 122 | B128: 262.9492684 | C128: 131.8581827 | D128: 131.0910856 | E128: 45077.42871 | G128: =tblDefAmort[[#This Row],[Payment]]/((1+$J$6)^tblDefAmort[[#This Row],[Month]]) -> 186.6100952
A129: 123 | B129: 262.9492684 | C129: 131.4758337 | D129: 131.4734346 | E129: 44945.95528 | G129: =tblDefAmort[[#This Row],[Payment]]/((1+$J$6)^tblDefAmort[[#This Row],[Month]]) -> 186.0862742
A130: 124 | B130: 262.9492684 | C130: 131.0923696 | D130: 131.8568988 | E130: 44814.09838 | G130: =tblDefAmort[[#This Row],[Payment]]/((1+$J$6)^tblDefAmort[[#This Row],[Month]]) -> 185.5639237
A131: 125 | B131: 262.9492684 | C131: 130.7077869 | D131: 132.2414815 | E131: 44681.8569 | G131: =tblDefAmort[[#This Row],[Payment]]/((1+$J$6)^tblDefAmort[[#This Row],[Month]]) -> 185.0430394
A132: 126 | B132: 262.9492684 | C132: 130.3220826 | D132: 132.6271858 | E132: 44549.22971 | G132: =tblDefAmort[[#This Row],[Payment]]/((1+$J$6)^tblDefAmort[[#This Row],[Month]]) -> 184.5236172
A133: 127 | B133: 262.9492684 | C133: 129.9352533 | D133: 133.0140151 | E133: 44416.21569 | G133: =tblDefAmort[[#This Row],[Payment]]/((1+$J$6)^tblDefAmort[[#This Row],[Month]]) -> 184.0056531
A134: 128 | B134: 262.9492684 | C134: 129.5472958 | D134: 133.4019726 | E134: 44282.81372 | G134: =tblDefAmort[[#This Row],[Payment]]/((1+$J$6)^tblDefAmort[[#This Row],[Month]]) -> 183.4891429
A135: 129 | B135: 262.9492684 | C135: 129.1582067 | D135: 133.7910617 | E135: 44149.02266 | G135: =tblDefAmort[[#This Row],[Payment]]/((1+$J$6)^tblDefAmort[[#This Row],[Month]]) -> 182.9740826
A136: 130 | B136: 262.9492684 | C136: 128.7679828 | D136: 134.1812856 | E136: 44014.84138 | G136: =tblDefAmort[[#This Row],[Payment]]/((1+$J$6)^tblDefAmort[[#This Row],[Month]]) -> 182.4604681
A137: 131 | B137: 262.9492684 | C137: 128.3766207 | D137: 134.5726477 | E137: 43880.26873 | G137: =tblDefAmort[[#This Row],[Payment]]/((1+$J$6)^tblDefAmort[[#This Row],[Month]]) -> 181.9482953
A138: 132 | B138: 262.9492684 | C138: 127.9841171 | D138: 134.9651513 | E138: 43745.30358 | G138: =tblDefAmort[[#This Row],[Payment]]/((1+$J$6)^tblDefAmort[[#This Row],[Month]]) -> 181.4375602
A139: 133 | B139: 262.9492684 | C139: 127.5904688 | D139: 135.3587996 | E139: 43609.94478 | G139: =tblDefAmort[[#This Row],[Payment]]/((1+$J$6)^tblDefAmort[[#This Row],[Month]]) -> 180.9282588
A140: 134 | B140: 262.9492684 | C140: 127.1956723 | D140: 135.7535961 | E140: 43474.19118 | G140: =tblDefAmort[[#This Row],[Payment]]/((1+$J$6)^tblDefAmort[[#This Row],[Month]]) -> 180.4203869
A141: 135 | B141: 262.9492684 | C141: 126.7997243 | D141: 136.1495441 | E141: 43338.04164 | G141: =tblDefAmort[[#This Row],[Payment]]/((1+$J$6)^tblDefAmort[[#This Row],[Month]]) -> 179.9139407
A142: 136 | B142: 262.9492684 | C142: 126.4026214 | D142: 136.5466469 | E142: 43201.49499 | G142: =tblDefAmort[[#This Row],[Payment]]/((1+$J$6)^tblDefAmort[[#This Row],[Month]]) -> 179.4089161
A143: 137 | B143: 262.9492684 | C143: 126.0043604 | D143: 136.944908 | E143: 43064.55008 | G143: =tblDefAmort[[#This Row],[Payment]]/((1+$J$6)^tblDefAmort[[#This Row],[Month]]) -> 178.9053091
A144: 138 | B144: 262.9492684 | C144: 125.6049377 | D144: 137.3443306 | E144: 42927.20575 | G144: =tblDefAmort[[#This Row],[Payment]]/((1+$J$6)^tblDefAmort[[#This Row],[Month]]) -> 178.4031158
A145: 139 | B145: 262.9492684 | C145: 125.2043501 | D145: 137.7449183 | E145: 42789.46083 | G145: =tblDefAmort[[#This Row],[Payment]]/((1+$J$6)^tblDefAmort[[#This Row],[Month]]) -> 177.9023322
A146: 140 | B146: 262.9492684 | C146: 124.8025941 | D146: 138.1466743 | E146: 42651.31416 | G146: =tblDefAmort[[#This Row],[Payment]]/((1+$J$6)^tblDefAmort[[#This Row],[Month]]) -> 177.4029542
A147: 141 | B147: 262.9492684 | C147: 124.3996663 | D147: 138.5496021 | E147: 42512.76456 | G147: =tblDefAmort[[#This Row],[Payment]]/((1+$J$6)^tblDefAmort[[#This Row],[Month]]) -> 176.904978
A148: 142 | B148: 262.9492684 | C148: 123.9955633 | D148: 138.9537051 | E148: 42373.81085 | G148: =tblDefAmort[[#This Row],[Payment]]/((1+$J$6)^tblDefAmort[[#This Row],[Month]]) -> 176.4083997
A149: 143 | B149: 262.9492684 | C149: 123.5902816 | D149: 139.3589867 | E149: 42234.45186 | G149: =tblDefAmort[[#This Row],[Payment]]/((1+$J$6)^tblDefAmort[[#This Row],[Month]]) -> 175.9132153
A150: 144 | B150: 262.9492684 | C150: 123.1838179 | D150: 139.7654504 | E150: 42094.68641 | G150: =tblDefAmort[[#This Row],[Payment]]/((1+$J$6)^tblDefAmort[[#This Row],[Month]]) -> 175.4194208
A151: 145 | B151: 262.9492684 | C151: 122.7761687 | D151: 140.1730997 | E151: 41954.51331 | G151: =tblDefAmort[[#This Row],[Payment]]/((1+$J$6)^tblDefAmort[[#This Row],[Month]]) -> 174.9270125
A152: 146 | B152: 262.9492684 | C152: 122.3673305 | D152: 140.5819379 | E152: 41813.93138 | G152: =tblDefAmort[[#This Row],[Payment]]/((1+$J$6)^tblDefAmort[[#This Row],[Month]]) -> 174.4359864
A153: 147 | B153: 262.9492684 | C153: 121.9572998 | D153: 140.9919685 | E153: 41672.93941 | G153: =tblDefAmort[[#This Row],[Payment]]/((1+$J$6)^tblDefAmort[[#This Row],[Month]]) -> 173.9463386
A154: 148 | B154: 262.9492684 | C154: 121.5460733 | D154: 141.4031951 | E154: 41531.53621 | G154: =tblDefAmort[[#This Row],[Payment]]/((1+$J$6)^tblDefAmort[[#This Row],[Month]]) -> 173.4580653
A155: 149 | B155: =-PMT(Interest_Rate/12,360-84,BalStartAm) -> 262.9492684 | C155: =SUM(E154*Interest_Rate/12) -> 121.1336473 | D155: 141.8156211 | E155: 41389.72059 | G155: =tblDefAmort[[#This Row],[Payment]]/((1+$J$6)^tblDefAmort[[#This Row],[Month]]) -> 172.9711625
A156: 150 | B156: 262.9492684 | C156: 120.7200184 | D156: =SUM(B156-C156) -> 142.22925 | E156: =SUM(E155-D156) -> 41247.49134 | G156: =tblDefAmort[[#This Row],[Payment]]/((1+$J$6)^tblDefAmort[[#This Row],[Month]]) -> 172.4856265
A157: 151 | B157: 262.9492684 | C157: 120.3051831 | D157: 142.6440853 | E157: 41104.84726 | G157: =tblDefAmort[[#This Row],[Payment]]/((1+$J$6)^tblDefAmort[[#This Row],[Month]]) -> 172.0014535
A158: 152 | B158: 262.9492684 | C158: 119.8891378 | D158: 143.0601306 | E158: 40961.78713 | G158: =tblDefAmort[[#This Row],[Payment]]/((1+$J$6)^tblDefAmort[[#This Row],[Month]]) -> 171.5186395
A159: 153 | B159: 262.9492684 | C159: 119.4718791 | D159: 143.4773893 | E159: 40818.30974 | G159: =tblDefAmort[[#This Row],[Payment]]/((1+$J$6)^tblDefAmort[[#This Row],[Month]]) -> 171.0371808
A160: 154 | B160: 262.9492684 | C160: 119.0534034 | D160: 143.895865 | E160: 40674.41387 | G160: =tblDefAmort[[#This Row],[Payment]]/((1+$J$6)^tblDefAmort[[#This Row],[Month]]) -> 170.5570736
A161: 155 | B161: 262.9492684 | C161: 118.6337071 | D161: 144.3155613 | E161: 40530.09831 | G161: =tblDefAmort[[#This Row],[Payment]]/((1+$J$6)^tblDefAmort[[#This Row],[Month]]) -> 170.078314
A162: 156 | B162: 262.9492684 | C162: 118.2127867 | D162: 144.7364816 | E162: 40385.36183 | G162: =tblDefAmort[[#This Row],[Payment]]/((1+$J$6)^tblDefAmort[[#This Row],[Month]]) -> 169.6008984
A163: 157 | B163: 262.9492684 | C163: 117.7906387 | D163: 145.1586297 | E163: 40240.2032 | G163: =tblDefAmort[[#This Row],[Payment]]/((1+$J$6)^tblDefAmort[[#This Row],[Month]]) -> 169.1248228
A164: 158 | B164: 262.9492684 | C164: 117.3672593 | D164: 145.5820091 | E164: 40094.62119 | G164: =tblDefAmort[[#This Row],[Payment]]/((1+$J$6)^tblDefAmort[[#This Row],[Month]]) -> 168.6500836
A165: 159 | B165: 262.9492684 | C165: 116.9426451 | D165: 146.0066232 | E165: 39948.61457 | G165: =tblDefAmort[[#This Row],[Payment]]/((1+$J$6)^tblDefAmort[[#This Row],[Month]]) -> 168.1766771
A166: 160 | B166: 262.9492684 | C166: 116.5167925 | D166: 146.4324759 | E166: 39802.18209 | G166: =tblDefAmort[[#This Row],[Payment]]/((1+$J$6)^tblDefAmort[[#This Row],[Month]]) -> 167.7045994
A167: 161 | B167: 262.9492684 | C167: 116.0896978 | D167: 146.8595706 | E167: 39655.32252 | G167: =tblDefAmort[[#This Row],[Payment]]/((1+$J$6)^tblDefAmort[[#This Row],[Month]]) -> 167.2338468
A168: 162 | B168: 262.9492684 | C168: 115.6613573 | D168: 147.287911 | E168: 39508.03461 | G168: =tblDefAmort[[#This Row],[Payment]]/((1+$J$6)^tblDefAmort[[#This Row],[Month]]) -> 166.7644157
A169: 163 | B169: 262.9492684 | C169: 115.2317676 | D169: 147.7175008 | E169: 39360.31711 | G169: =tblDefAmort[[#This Row],[Payment]]/((1+$J$6)^tblDefAmort[[#This Row],[Month]]) -> 166.2963022
A170: 164 | B170: 262.9492684 | C170: 114.8009249 | D170: 148.1483435 | E170: 39212.16876 | G170: =tblDefAmort[[#This Row],[Payment]]/((1+$J$6)^tblDefAmort[[#This Row],[Month]]) -> 165.8295028
A171: 165 | B171: 262.9492684 | C171: 114.3688256 | D171: 148.5804428 | E171: 39063.58832 | G171: =tblDefAmort[[#This Row],[Payment]]/((1+$J$6)^tblDefAmort[[#This Row],[Month]]) -> 165.3640137
A172: 166 | B172: 262.9492684 | C172: 113.9354659 | D172: 149.0138024 | E172: 38914.57452 | G172: =tblDefAmort[[#This Row],[Payment]]/((1+$J$6)^tblDefAmort[[#This Row],[Month]]) -> 164.8998313
A173: 167 | B173: 262.9492684 | C173: 113.5008423 | D173: 149.448426 | E173: 38765.12609 | G173: =tblDefAmort[[#This Row],[Payment]]/((1+$J$6)^tblDefAmort[[#This Row],[Month]]) -> 164.4369518
A174: 168 | B174: 262.9492684 | C174: 113.0649511 | D174: 149.8843173 | E174: 38615.24178 | G174: =tblDefAmort[[#This Row],[Payment]]/((1+$J$6)^tblDefAmort[[#This Row],[Month]]) -> 163.9753716
A175: 169 | B175: 262.9492684 | C175: 112.6277885 | D175: 150.3214799 | E175: 38464.9203 | G175: =tblDefAmort[[#This Row],[Payment]]/((1+$J$6)^tblDefAmort[[#This Row],[Month]]) -> 163.5150871
A176: 170 | B176: 262.9492684 | C176: 112.1893509 | D176: 150.7599175 | E176: 38314.16038 | G176: =tblDefAmort[[#This Row],[Payment]]/((1+$J$6)^tblDefAmort[[#This Row],[Month]]) -> 163.0560947
A177: 171 | B177: 262.9492684 | C177: 111.7496344 | D177: 151.1996339 | E177: 38162.96074 | G177: =tblDefAmort[[#This Row],[Payment]]/((1+$J$6)^tblDefAmort[[#This Row],[Month]]) -> 162.5983906
A178: 172 | B178: 262.9492684 | C178: 111.3086355 | D178: 151.6406329 | E178: 38011.32011 | G178: =tblDefAmort[[#This Row],[Payment]]/((1+$J$6)^tblDefAmort[[#This Row],[Month]]) -> 162.1419714
A179: 173 | B179: 262.9492684 | C179: 110.8663503 | D179: 152.0829181 | E179: 37859.23719 | G179: =tblDefAmort[[#This Row],[Payment]]/((1+$J$6)^tblDefAmort[[#This Row],[Month]]) -> 161.6868333
A180: 174 | B180: 262.9492684 | C180: 110.4227751 | D180: 152.5264932 | E180: 37706.7107 | G180: =tblDefAmort[[#This Row],[Payment]]/((1+$J$6)^tblDefAmort[[#This Row],[Month]]) -> 161.2329728
A181: 175 | B181: 262.9492684 | C181: 109.9779062 | D181: 152.9713622 | E181: 37553.73934 | G181: =tblDefAmort[[#This Row],[Payment]]/((1+$J$6)^tblDefAmort[[#This Row],[Month]]) -> 160.7803863
A182: 176 | B182: 262.9492684 | C182: 109.5317397 | D182: 153.4175286 | E182: 37400.32181 | G182: =tblDefAmort[[#This Row],[Payment]]/((1+$J$6)^tblDefAmort[[#This Row],[Month]]) -> 160.3290703
A183: 177 | B183: 262.9492684 | C183: 109.0842719 | D183: 153.8649964 | E183: 37246.45681 | G183: =tblDefAmort[[#This Row],[Payment]]/((1+$J$6)^tblDefAmort[[#This Row],[Month]]) -> 159.8790211
A184: 178 | B184: 262.9492684 | C184: 108.635499 | D184: 154.3137693 | E184: 37092.14304 | G184: =tblDefAmort[[#This Row],[Payment]]/((1+$J$6)^tblDefAmort[[#This Row],[Month]]) -> 159.4302352
A185: 179 | B185: 262.9492684 | C185: 108.1854172 | D185: 154.7638512 | E185: 36937.37919 | G185: =tblDefAmort[[#This Row],[Payment]]/((1+$J$6)^tblDefAmort[[#This Row],[Month]]) -> 158.982709
A186: 180 | B186: 262.9492684 | C186: 107.7340226 | D186: 155.2152457 | E186: 36782.16395 | G186: =tblDefAmort[[#This Row],[Payment]]/((1+$J$6)^tblDefAmort[[#This Row],[Month]]) -> 158.5364391
A187: 181 | B187: 262.9492684 | C187: 107.2813115 | D187: 155.6679569 | E187: 36626.49599 | G187: =tblDefAmort[[#This Row],[Payment]]/((1+$J$6)^tblDefAmort[[#This Row],[Month]]) -> 158.0914219
A188: 182 | B188: 262.9492684 | C188: 106.82728 | D188: 156.1219884 | E188: 36470.374 | G188: =tblDefAmort[[#This Row],[Payment]]/((1+$J$6)^tblDefAmort[[#This Row],[Month]]) -> 157.6476539
A189: 183 | B189: 262.9492684 | C189: 106.3719242 | D189: 156.5773442 | E189: 36313.79666 | G189: =tblDefAmort[[#This Row],[Payment]]/((1+$J$6)^tblDefAmort[[#This Row],[Month]]) -> 157.2051315
A190: 184 | B190: 262.9492684 | C190: 105.9152403 | D190: 157.0340281 | E190: 36156.76263 | G190: =tblDefAmort[[#This Row],[Payment]]/((1+$J$6)^tblDefAmort[[#This Row],[Month]]) -> 156.7638513
A191: 185 | B191: 262.9492684 | C191: 105.4572243 | D191: 157.492044 | E191: 35999.27059 | G191: =tblDefAmort[[#This Row],[Payment]]/((1+$J$6)^tblDefAmort[[#This Row],[Month]]) -> 156.3238098
A192: 186 | B192: 262.9492684 | C192: 104.9978725 | D192: 157.9513958 | E192: 35841.31919 | G192: =tblDefAmort[[#This Row],[Payment]]/((1+$J$6)^tblDefAmort[[#This Row],[Month]]) -> 155.8850035
A193: 187 | B193: 262.9492684 | C193: 104.537181 | D193: 158.4120874 | E193: 35682.9071 | G193: =tblDefAmort[[#This Row],[Payment]]/((1+$J$6)^tblDefAmort[[#This Row],[Month]]) -> 155.447429
A194: 188 | B194: 262.9492684 | C194: 104.0751457 | D194: 158.8741227 | E194: 35524.03298 | G194: =tblDefAmort[[#This Row],[Payment]]/((1+$J$6)^tblDefAmort[[#This Row],[Month]]) -> 155.0110827
A195: 189 | B195: 262.9492684 | C195: 103.6117629 | D195: 159.3375055 | E195: 35364.69547 | G195: =tblDefAmort[[#This Row],[Payment]]/((1+$J$6)^tblDefAmort[[#This Row],[Month]]) -> 154.5759613
A196: 190 | B196: 262.9492684 | C196: 103.1470285 | D196: 159.8022399 | E196: 35204.89323 | G196: =tblDefAmort[[#This Row],[Payment]]/((1+$J$6)^tblDefAmort[[#This Row],[Month]]) -> 154.1420612
A197: 191 | B197: 262.9492684 | C197: 102.6809386 | D197: 160.2683298 | E197: 35044.6249 | G197: =tblDefAmort[[#This Row],[Payment]]/((1+$J$6)^tblDefAmort[[#This Row],[Month]]) -> 153.7093792
A198: 192 | B198: 262.9492684 | C198: 102.2134893 | D198: 160.7357791 | E198: 34883.88912 | G198: =tblDefAmort[[#This Row],[Payment]]/((1+$J$6)^tblDefAmort[[#This Row],[Month]]) -> 153.2779117
A199: 193 | B199: 262.9492684 | C199: 101.7446766 | D199: 161.2045918 | E199: 34722.68453 | G199: =tblDefAmort[[#This Row],[Payment]]/((1+$J$6)^tblDefAmort[[#This Row],[Month]]) -> 152.8476553
A200: 194 | B200: 262.9492684 | C200: 101.2744966 | D200: 161.6747718 | E200: 34561.00976 | G200: =tblDefAmort[[#This Row],[Payment]]/((1+$J$6)^tblDefAmort[[#This Row],[Month]]) -> 152.4186067
A201: 195 | B201: 262.9492684 | C201: 100.8029451 | D201: 162.1463232 | E201: 34398.86344 | G201: =tblDefAmort[[#This Row],[Payment]]/((1+$J$6)^tblDefAmort[[#This Row],[Month]]) -> 151.9907625
A202: 196 | B202: 262.9492684 | C202: 100.3300184 | D202: 162.61925 | E202: 34236.24419 | G202: =tblDefAmort[[#This Row],[Payment]]/((1+$J$6)^tblDefAmort[[#This Row],[Month]]) -> 151.5641192
A203: 197 | B203: 262.9492684 | C203: 99.85571222 | D203: 163.0935562 | E203: 34073.15063 | G203: =tblDefAmort[[#This Row],[Payment]]/((1+$J$6)^tblDefAmort[[#This Row],[Month]]) -> 151.1386735
... 164 more rows
